[Event "Titled Tuesday Blitz March 28 Late 2023"]
[White "Babazada, Khazar"]
[Black "Wadsworth, Matthew J"]
[WhiteFideId "13413554"]
[BlackFideId "415804"]
[WhiteElo "2364"]
[BlackElo "2330"]
[Result "1-0"]
[Round "04"]
[TimeControl "180+2"]
[Date "2023.03.28"]
[WhiteClock "0:00:29"]
[BlackClock "0:00:01"]

1. c4 {[%clk 0:03:00]}  c6 {[%clk 0:02:51]} 2. Nc3 {[%clk 0:02:59]}  d5 {[%clk 0:02:51]} 3. d4 {[%clk 0:03:00]}  Nf6 {[%clk 0:02:50]} 4. e3 {[%clk 0:02:58]}  a6 {[%clk 0:02:49]} 5. Nf3 {[%clk 0:02:57]}  b5 {[%clk 0:02:47]} 6. cxd5 {[%clk 0:02:57]}  cxd5 {[%clk 0:02:46]} 7. Bd3 {[%clk 0:02:58]}  Bb7 {[%clk 0:02:40]} 8. O-O {[%clk 0:02:49]}  e6 {[%clk 0:02:39]} 9. Ne5 {[%clk 0:02:47]}  Nc6 {[%clk 0:02:39]} 10. f4 {[%clk 0:02:47]}  Be7 {[%clk 0:02:31]} 11. Bd2 {[%clk 0:02:47]}  O-O {[%clk 0:02:28]} 12. Be1 {[%clk 0:02:42]}  b4 {[%clk 0:02:06]} 13. Na4 {[%clk 0:02:36]}  Nxe5 {[%clk 0:02:06]} 14. fxe5 {[%clk 0:02:37]}  Ne4 {[%clk 0:02:06]} 15. Rc1 {[%clk 0:02:35]}  Rc8 {[%clk 0:01:56]} 16. Rxc8 {[%clk 0:02:23]}  Qxc8 {[%clk 0:01:53]} 17. Qe2 {[%clk 0:02:14]}  a5 {[%clk 0:01:39]} 18. b3 {[%clk 0:02:10]}  f5 {[%clk 0:01:25]} 19. exf6 {[%clk 0:02:05]}  Rxf6 {[%clk 0:01:21]} 20. Rxf6 {[%clk 0:01:52]}  Nxf6 {[%clk 0:01:21]} 21. Qc2 {[%clk 0:01:37]}  Qxc2 {[%clk 0:01:20]} 22. Bxc2 {[%clk 0:01:38]}  Bc6 {[%clk 0:01:17]} 23. Nb2 {[%clk 0:01:38]}  Ng4 {[%clk 0:00:59]} 24. Bd2 {[%clk 0:01:30]}  Bg5 {[%clk 0:00:59]} 25. Nd1 {[%clk 0:01:30]}  Bb5 {[%clk 0:00:57]} 26. h3 {[%clk 0:01:30]}  Nf6 {[%clk 0:00:56]} 27. Nb2 {[%clk 0:01:27]}  Kf7 {[%clk 0:00:39]} 28. Kf2 {[%clk 0:01:24]}  Ke7 {[%clk 0:00:38]} 29. Kf3 {[%clk 0:01:00]}  h5 {[%clk 0:00:36]} 30. Be1 {[%clk 0:00:52]}  Bh6 {[%clk 0:00:31]} 31. Bg3 {[%clk 0:00:50]}  Kd7 {[%clk 0:00:21]} 32. Be5 {[%clk 0:00:50]}  Ne8 {[%clk 0:00:14]} 33. Bd3 {[%clk 0:00:49]}  Kc6 {[%clk 0:00:10]} 34. Bg6 {[%clk 0:00:49]}  Nd6 {[%clk 0:00:10]} 35. Bxh5 {[%clk 0:00:46]}  Nf5 {[%clk 0:00:08]} 36. Bf4 {[%clk 0:00:42]}  Bxf4 {[%clk 0:00:07]} 37. Kxf4 {[%clk 0:00:43]}  Bf1 {[%clk 0:00:07]} 38. Bf3 {[%clk 0:00:38]}  Nd6 {[%clk 0:00:06]} 39. h4 {[%clk 0:00:37]}  Kb5 {[%clk 0:00:06]} 40. Ke5 {[%clk 0:00:37]}  Nf5 {[%clk 0:00:05]} 41. Kxe6 {[%clk 0:00:32]}  Nxe3 {[%clk 0:00:04]} 42. g4 {[%clk 0:00:32]}  Nc2 {[%clk 0:00:03]} 43. Ke5 {[%clk 0:00:29]}  Na3 {[%clk 0:00:03]} 44. h5 {[%clk 0:00:28]}  Nb1 {[%clk 0:00:01]} 45. g5 {[%clk 0:00:28]}  Nc3 {[%clk 0:00:01]} 46. h6 {[%clk 0:00:28]}  gxh6 {[%clk 0:00:01]} 47. gxh6 {[%clk 0:00:29]} 1-0


[Site "https://www.chess.com"]

[Event "Titled Tuesday Blitz March 28 Late 2023"]
[White "Olenik Campa, Rudi"]
[Black "Corrales Jimenez, Fidel"]
[WhiteFideId "14633264"]
[BlackFideId "3506690"]
[WhiteElo "2249"]
[BlackElo "2541"]
[Result "1/2-1/2"]
[Round "04"]
[TimeControl "180+2"]
[Date "2023.03.28"]
[WhiteClock "0:00:17"]
[BlackClock "0:01:11"]

1. e4 {[%clk 0:02:50]}  c5 {[%clk 0:02:58]} 2. Nf3 {[%clk 0:02:49]}  e6 {[%clk 0:02:58]} 3. c4 {[%clk 0:02:49]}  Nc6 {[%clk 0:02:58]} 4. Be2 {[%clk 0:02:50]}  a6 {[%clk 0:02:57]} 5. O-O {[%clk 0:02:48]}  d6 {[%clk 0:02:57]} 6. d4 {[%clk 0:02:48]}  cxd4 {[%clk 0:02:58]} 7. Nxd4 {[%clk 0:02:49]}  Nf6 {[%clk 0:02:57]} 8. Nc3 {[%clk 0:02:49]}  Be7 {[%clk 0:02:57]} 9. Be3 {[%clk 0:02:48]}  O-O {[%clk 0:02:57]} 10. f3 {[%clk 0:02:49]}  Bd7 {[%clk 0:02:56]} 11. Rc1 {[%clk 0:02:49]}  Rc8 {[%clk 0:02:56]} 12. Qd2 {[%clk 0:02:49]}  Nxd4 {[%clk 0:02:56]} 13. Bxd4 {[%clk 0:02:49]}  Bc6 {[%clk 0:02:57]} 14. Rfd1 {[%clk 0:02:48]}  Nd7 {[%clk 0:02:55]} 15. Bf1 {[%clk 0:02:48]}  Bg5 {[%clk 0:02:54]} 16. Be3 {[%clk 0:02:47]}  Bxe3+ {[%clk 0:02:54]} 17. Qxe3 {[%clk 0:02:48]}  Ne5 {[%clk 0:02:43]} 18. c5 {[%clk 0:02:33]}  Qf6 {[%clk 0:02:42]} 19. cxd6 {[%clk 0:02:29]}  g5 {[%clk 0:02:42]} 20. b4 {[%clk 0:02:14]}  Rcd8 {[%clk 0:02:42]} 21. b5 {[%clk 0:02:13]}  axb5 {[%clk 0:02:42]} 22. Bxb5 {[%clk 0:02:12]}  Rd7 {[%clk 0:02:36]} 23. Bxc6 {[%clk 0:02:12]}  bxc6 {[%clk 0:02:37]} 24. Na4 {[%clk 0:02:06]}  Rfd8 {[%clk 0:02:37]} 25. Qc5 {[%clk 0:02:05]}  g4 {[%clk 0:02:32]} 26. fxg4 {[%clk 0:01:47]}  Nxg4 {[%clk 0:02:31]} 27. Rf1 {[%clk 0:01:43]}  Qh6 {[%clk 0:02:30]} 28. h3 {[%clk 0:01:41]}  Ne3 {[%clk 0:02:09]} 29. Rf3 {[%clk 0:01:32]}  Nxg2 {[%clk 0:02:09]} 30. Rg3+ {[%clk 0:01:21]}  Kh8 {[%clk 0:02:09]} 31. Qc3+ {[%clk 0:01:18]}  f6 {[%clk 0:02:09]} 32. Kxg2 {[%clk 0:01:18]}  Rxd6 {[%clk 0:02:10]} 33. Rf1 {[%clk 0:01:07]}  Rd2+ {[%clk 0:02:09]} 34. Kh1 {[%clk 0:01:07]}  Rd1 {[%clk 0:01:47]} 35. Rgg1 {[%clk 0:01:03]}  R1d3 {[%clk 0:01:17]} 36. Qxf6+ {[%clk 0:01:02]}  Qxf6 {[%clk 0:01:17]} 37. Rxf6 {[%clk 0:01:02]}  Rxh3+ {[%clk 0:01:18]} 38. Kg2 {[%clk 0:01:02]}  Ra3 {[%clk 0:01:19]} 39. Nc5 {[%clk 0:00:58]}  Rxa2+ {[%clk 0:01:15]} 40. Kf3 {[%clk 0:00:52]}  e5 {[%clk 0:01:15]} 41. Ne6 {[%clk 0:00:42]}  Ra3+ {[%clk 0:01:15]} 42. Ke2 {[%clk 0:00:38]}  Ra2+ {[%clk 0:01:15]} 43. Ke3 {[%clk 0:00:34]}  Ra3+ {[%clk 0:01:13]} 44. Ke2 {[%clk 0:00:34]}  Ra2+ {[%clk 0:01:12]} 45. Kf3 {[%clk 0:00:30]}  Ra3+ {[%clk 0:01:11]} 46. Ke2 {[%clk 0:00:17]} 1/2-1/2


[Site "https://www.chess.com"]

[Event "Titled Tuesday Blitz March 28 Late 2023"]
[White "Ehlvest, Jaan"]
[Black "Melkumyan, Hrant"]
[WhiteFideId "4500016"]
[BlackFideId "13302485"]
[WhiteElo "2442"]
[BlackElo "2604"]
[Result "0-1"]
[Round "04"]
[TimeControl "180+2"]
[Date "2023.03.28"]
[WhiteClock "0:00:25"]
[BlackClock "0:01:03"]

1. e4 {[%clk 0:02:54]}  c5 {[%clk 0:02:59]} 2. Nf3 {[%clk 0:02:53]}  Nc6 {[%clk 0:02:59]} 3. d4 {[%clk 0:02:53]}  cxd4 {[%clk 0:02:59]} 4. Nxd4 {[%clk 0:02:54]}  g6 {[%clk 0:03:00]} 5. c4 {[%clk 0:02:53]}  Nf6 {[%clk 0:03:00]} 6. Nc3 {[%clk 0:02:52]}  d6 {[%clk 0:02:59]} 7. f3 {[%clk 0:02:52]}  Nxd4 {[%clk 0:02:57]} 8. Qxd4 {[%clk 0:02:52]}  Bg7 {[%clk 0:02:58]} 9. Be3 {[%clk 0:02:52]}  O-O {[%clk 0:02:57]} 10. Qd2 {[%clk 0:02:52]}  a5 {[%clk 0:02:58]} 11. b3 {[%clk 0:02:49]}  Be6 {[%clk 0:02:55]} 12. Rc1 {[%clk 0:02:42]}  Nd7 {[%clk 0:02:55]} 13. Be2 {[%clk 0:02:34]}  Nc5 {[%clk 0:02:49]} 14. O-O {[%clk 0:02:33]}  Bd7 {[%clk 0:02:36]} 15. Rcd1 {[%clk 0:02:25]}  Bc6 {[%clk 0:02:34]} 16. Kh1 {[%clk 0:02:23]}  Ne6 {[%clk 0:02:18]} 17. Rfe1 {[%clk 0:02:14]}  Qc7 {[%clk 0:02:16]} 18. Bf1 {[%clk 0:02:11]}  Rfc8 {[%clk 0:02:16]} 19. g3 {[%clk 0:01:43]}  Qd8 {[%clk 0:02:15]} 20. Bg2 {[%clk 0:01:36]}  Qf8 {[%clk 0:02:14]} 21. Nd5 {[%clk 0:01:27]}  Bxd5 {[%clk 0:02:06]} 22. exd5 {[%clk 0:01:27]}  Nc5 {[%clk 0:02:07]} 23. Bh3 {[%clk 0:01:25]}  Rc7 {[%clk 0:02:06]} 24. Qe2 {[%clk 0:01:11]}  b6 {[%clk 0:02:05]} 25. Bf2 {[%clk 0:01:09]}  Rb7 {[%clk 0:01:58]} 26. f4 {[%clk 0:01:08]}  Rab8 {[%clk 0:01:36]} 27. Bf1 {[%clk 0:01:08]}  Bc3 {[%clk 0:01:32]} 28. Qf3 {[%clk 0:01:04]}  Bxe1 {[%clk 0:01:31]} 29. Rxe1 {[%clk 0:01:05]}  Rc7 {[%clk 0:01:31]} 30. Bd4 {[%clk 0:01:04]}  Nd7 {[%clk 0:01:24]} 31. g4 {[%clk 0:01:03]}  b5 {[%clk 0:01:21]} 32. cxb5 {[%clk 0:01:01]}  Rc2 {[%clk 0:01:22]} 33. a4 {[%clk 0:00:59]}  Rbc8 {[%clk 0:01:20]} 34. Bc4 {[%clk 0:00:53]}  R2xc4 {[%clk 0:01:15]} 35. bxc4 {[%clk 0:00:52]}  Rxc4 {[%clk 0:01:16]} 36. Qe3 {[%clk 0:00:41]}  Rxa4 {[%clk 0:01:15]} 37. b6 {[%clk 0:00:37]}  Qa8 {[%clk 0:01:06]} 38. Kg1 {[%clk 0:00:30]}  Qxd5 {[%clk 0:01:04]} 39. Ba1 {[%clk 0:00:26]}  Ra2 {[%clk 0:01:03]} 40. Re2 {[%clk 0:00:25]}  Rxa1+ {[%clk 0:01:03]} 0-1


[Site "https://www.chess.com"]

[Event "Titled Tuesday Blitz March 28 Late 2023"]
[White "Rastbod, Ali"]
[Black "Raja Rithvik R"]
[WhiteFideId "12567477"]
[BlackFideId "35007394"]
[WhiteElo "2211"]
[BlackElo "2402"]
[Result "1/2-1/2"]
[Round "04"]
[TimeControl "180+2"]
[Date "2023.03.28"]
[WhiteClock "0:00:11"]
[BlackClock "0:00:19"]

1. c4 {[%clk 0:03:00]}  g6 {[%clk 0:02:55]} 2. g3 {[%clk 0:02:57]}  Bg7 {[%clk 0:02:54]} 3. Bg2 {[%clk 0:02:57]}  c5 {[%clk 0:02:55]} 4. Nc3 {[%clk 0:02:57]}  Nc6 {[%clk 0:02:55]} 5. a3 {[%clk 0:02:58]}  e6 {[%clk 0:02:54]} 6. Rb1 {[%clk 0:02:58]}  a5 {[%clk 0:02:51]} 7. e4 {[%clk 0:02:51]}  Nge7 {[%clk 0:02:51]} 8. d3 {[%clk 0:02:49]}  O-O {[%clk 0:02:50]} 9. Be3 {[%clk 0:02:49]}  d6 {[%clk 0:02:49]} 10. Nge2 {[%clk 0:02:50]}  f5 {[%clk 0:02:48]} 11. O-O {[%clk 0:02:49]}  Nd4 {[%clk 0:02:47]} 12. Bxd4 {[%clk 0:02:45]}  cxd4 {[%clk 0:02:48]} 13. Nb5 {[%clk 0:02:46]}  e5 {[%clk 0:02:47]} 14. exf5 {[%clk 0:02:36]}  gxf5 {[%clk 0:02:43]} 15. f4 {[%clk 0:02:35]}  Rb8 {[%clk 0:02:18]} 16. fxe5 {[%clk 0:02:13]}  dxe5 {[%clk 0:02:18]} 17. c5 {[%clk 0:02:14]}  Be6 {[%clk 0:02:11]} 18. Nd6 {[%clk 0:02:02]}  Nd5 {[%clk 0:02:03]} 19. Bxd5 {[%clk 0:01:16]}  Bxd5 {[%clk 0:02:03]} 20. Nxf5 {[%clk 0:01:17]}  Qg5 {[%clk 0:02:03]} 21. h4 {[%clk 0:00:41]}  Qd8 {[%clk 0:02:03]} 22. Qd2 {[%clk 0:00:30]}  Bc6 {[%clk 0:01:44]} 23. Qg5 {[%clk 0:00:25]}  Qxg5 {[%clk 0:01:44]} 24. hxg5 {[%clk 0:00:26]}  Rbe8 {[%clk 0:01:43]} 25. b4 {[%clk 0:00:17]}  axb4 {[%clk 0:01:42]} 26. axb4 {[%clk 0:00:18]}  Bb5 {[%clk 0:01:13]} 27. Nd6 {[%clk 0:00:18]}  Bxd3 {[%clk 0:01:12]} 28. Nxe8 {[%clk 0:00:16]}  Rxe8 {[%clk 0:01:13]} 29. Rbe1 {[%clk 0:00:12]}  Bb5 {[%clk 0:01:07]} 30. Rf3 {[%clk 0:00:03]}  e4 {[%clk 0:01:05]} 31. Rf4 {[%clk 0:00:04]}  d3 {[%clk 0:01:04]} 32. Kf2 {[%clk 0:00:03]}  dxe2 {[%clk 0:00:53]} 33. Rxe2 {[%clk 0:00:04]}  Bxe2 {[%clk 0:00:53]} 34. Kxe2 {[%clk 0:00:05]}  Bd4 {[%clk 0:00:50]} 35. g4 {[%clk 0:00:04]}  Kg7 {[%clk 0:00:47]} 36. Rf5 {[%clk 0:00:04]}  e3 {[%clk 0:00:16]} 37. Rd5 {[%clk 0:00:04]}  Re4 {[%clk 0:00:12]} 38. b5 {[%clk 0:00:04]}  Rxg4 {[%clk 0:00:13]} 39. c6 {[%clk 0:00:04]}  bxc6 {[%clk 0:00:14]} 40. bxc6 {[%clk 0:00:05]}  Bb6 {[%clk 0:00:14]} 41. c7 {[%clk 0:00:04]}  Bxc7 {[%clk 0:00:14]} 42. Rd7+ {[%clk 0:00:03]}  Kg6 {[%clk 0:00:13]} 43. Rxc7 {[%clk 0:00:04]}  Rg3 {[%clk 0:00:14]} 44. Ra7 {[%clk 0:00:02]}  Rh3 {[%clk 0:00:12]} 45. Re7 {[%clk 0:00:03]}  Rg3 {[%clk 0:00:10]} 46. Rxe3 {[%clk 0:00:03]}  Rxg5 {[%clk 0:00:09]} 47. Rf3 {[%clk 0:00:02]}  Rf5 {[%clk 0:00:10]} 48. Rxf5 {[%clk 0:00:02]}  Kxf5 {[%clk 0:00:10]} 49. Kf3 {[%clk 0:00:02]}  Kg5 {[%clk 0:00:11]} 50. Kg2 {[%clk 0:00:03]}  Kh5 {[%clk 0:00:12]} 51. Kh1 {[%clk 0:00:04]}  Kg5 {[%clk 0:00:13]} 52. Kg1 {[%clk 0:00:05]}  Kg4 {[%clk 0:00:14]} 53. Kh1 {[%clk 0:00:06]}  h6 {[%clk 0:00:15]} 54. Kg1 {[%clk 0:00:07]}  h5 {[%clk 0:00:15]} 55. Kh1 {[%clk 0:00:08]}  h4 {[%clk 0:00:16]} 56. Kg1 {[%clk 0:00:09]}  Kh3 {[%clk 0:00:17]} 57. Kh1 {[%clk 0:00:10]}  Kg3 {[%clk 0:00:18]} 58. Kg1 {[%clk 0:00:11]}  h3 {[%clk 0:00:19]} 59. Kh1 {[%clk 0:00:11]}  h2 {[%clk 0:00:19]} 1/2-1/2


[Site "https://www.chess.com"]

[Event "Titled Tuesday Blitz March 28 Late 2023"]
[White "Jocev, Milan"]
[Black "Smirnov, Pavel"]
[WhiteFideId "900680"]
[BlackFideId "4123425"]
[WhiteElo "2323"]
[BlackElo "2519"]
[Result "0-1"]
[Round "04"]
[TimeControl "180+2"]
[Date "2023.03.28"]
[WhiteClock "0:01:17"]
[BlackClock "0:01:43"]

1. b3 {[%clk 0:03:00]}  e5 {[%clk 0:02:59]} 2. Bb2 {[%clk 0:03:00]}  Nc6 {[%clk 0:03:00]} 3. e3 {[%clk 0:03:01]}  Nf6 {[%clk 0:03:00]} 4. Bb5 {[%clk 0:02:59]}  Bd6 {[%clk 0:03:01]} 5. Ne2 {[%clk 0:02:58]}  O-O {[%clk 0:03:00]} 6. Ng3 {[%clk 0:02:58]}  Re8 {[%clk 0:02:57]} 7. d3 {[%clk 0:02:58]}  a6 {[%clk 0:02:42]} 8. Bxc6 {[%clk 0:02:58]}  dxc6 {[%clk 0:02:43]} 9. Nd2 {[%clk 0:02:55]}  Be6 {[%clk 0:02:41]} 10. O-O {[%clk 0:02:55]}  Qd7 {[%clk 0:02:41]} 11. Nde4 {[%clk 0:02:53]}  Nxe4 {[%clk 0:02:40]} 12. Nxe4 {[%clk 0:02:49]}  Bf8 {[%clk 0:02:29]} 13. Bxe5 {[%clk 0:02:35]}  Bg4 {[%clk 0:02:26]} 14. f3 {[%clk 0:02:33]}  Bxf3 {[%clk 0:02:25]} 15. Qxf3 {[%clk 0:02:34]}  Rxe5 {[%clk 0:02:25]} 16. Rae1 {[%clk 0:02:29]}  Rae8 {[%clk 0:02:24]} 17. Ng3 {[%clk 0:02:28]}  Bc5 {[%clk 0:01:59]} 18. Nf5 {[%clk 0:02:16]}  g6 {[%clk 0:01:58]} 19. Nh6+ {[%clk 0:02:07]}  Kg7 {[%clk 0:01:58]} 20. Ng4 {[%clk 0:02:01]}  Rf5 {[%clk 0:01:57]} 21. Qh3 {[%clk 0:01:49]}  h5 {[%clk 0:01:46]} 22. Rxf5 {[%clk 0:01:17]}  hxg4 {[%clk 0:01:43]} 0-1


[Site "https://www.chess.com"]

[Event "Titled Tuesday Blitz March 28 Late 2023"]
[White "Fiorito, Joaquin"]
[Black "Aradhya, Garg"]
[WhiteFideId "180173"]
[BlackFideId "25006746"]
[WhiteElo "2157"]
[BlackElo "2263"]
[Result "0-1"]
[Round "04"]
[TimeControl "180+2"]
[Date "2023.03.28"]
[WhiteClock "0:00:02"]
[BlackClock "0:00:20"]

1. d4 {[%clk 0:03:00]}  d5 {[%clk 0:02:59]} 2. c4 {[%clk 0:02:59]}  c6 {[%clk 0:02:59]} 3. Nf3 {[%clk 0:02:58]}  Nf6 {[%clk 0:02:59]} 4. e3 {[%clk 0:02:58]}  Bf5 {[%clk 0:02:59]} 5. Nc3 {[%clk 0:02:58]}  e6 {[%clk 0:02:59]} 6. Nh4 {[%clk 0:02:59]}  Be4 {[%clk 0:03:00]} 7. f3 {[%clk 0:02:58]}  Bg6 {[%clk 0:02:59]} 8. Qb3 {[%clk 0:02:59]}  Qc7 {[%clk 0:02:46]} 9. Bd2 {[%clk 0:02:50]}  Nbd7 {[%clk 0:02:46]} 10. Nxg6 {[%clk 0:02:49]}  hxg6 {[%clk 0:02:45]} 11. g3 {[%clk 0:02:50]}  Bd6 {[%clk 0:02:44]} 12. f4 {[%clk 0:02:30]}  g5 {[%clk 0:02:43]} 13. O-O-O {[%clk 0:02:24]}  gxf4 {[%clk 0:02:28]} 14. gxf4 {[%clk 0:02:13]}  g6 {[%clk 0:02:27]} 15. Be2 {[%clk 0:02:12]}  Kf8 {[%clk 0:02:27]} 16. Bf3 {[%clk 0:02:11]}  Kg7 {[%clk 0:02:19]} 17. h4 {[%clk 0:02:10]}  a5 {[%clk 0:02:16]} 18. Rdg1 {[%clk 0:02:09]}  a4 {[%clk 0:02:15]} 19. Qc2 {[%clk 0:02:10]}  a3 {[%clk 0:02:11]} 20. h5 {[%clk 0:01:57]}  axb2+ {[%clk 0:02:10]} 21. Kb1 {[%clk 0:01:58]}  Nf8 {[%clk 0:01:58]} 22. hxg6 {[%clk 0:01:48]}  Nxg6 {[%clk 0:01:58]} 23. e4 {[%clk 0:01:20]}  dxe4 {[%clk 0:01:43]} 24. Nxe4 {[%clk 0:01:19]}  Bxf4 {[%clk 0:01:33]} 25. Nxf6 {[%clk 0:01:14]}  Kxf6 {[%clk 0:01:33]} 26. Bc3 {[%clk 0:01:10]}  Ke7 {[%clk 0:01:33]} 27. d5 {[%clk 0:01:04]}  Be5 {[%clk 0:01:29]} 28. dxe6 {[%clk 0:00:20]}  Rxh1 {[%clk 0:01:17]} 29. Bxh1 {[%clk 0:00:17]}  Bxc3 {[%clk 0:01:09]} 30. Qxc3 {[%clk 0:00:18]}  Qe5 {[%clk 0:01:05]} 31. Qb4+ {[%clk 0:00:18]}  Kf6 {[%clk 0:00:57]} 32. Rf1+ {[%clk 0:00:18]}  Kg5 {[%clk 0:00:53]} 33. Qd2+ {[%clk 0:00:16]}  Nf4 {[%clk 0:00:53]} 34. exf7 {[%clk 0:00:14]}  Rf8 {[%clk 0:00:51]} 35. Rg1+ {[%clk 0:00:13]}  Kf6 {[%clk 0:00:50]} 36. Rf1 {[%clk 0:00:12]}  Kg5 {[%clk 0:00:50]} 37. Rg1+ {[%clk 0:00:10]}  Kf6 {[%clk 0:00:50]} 38. Qxb2 {[%clk 0:00:03]}  Qxb2+ {[%clk 0:00:48]} 39. Kxb2 {[%clk 0:00:04]}  Rxf7 {[%clk 0:00:49]} 40. Rf1 {[%clk 0:00:04]}  Ke5 {[%clk 0:00:49]} 41. Kc2 {[%clk 0:00:04]}  Rh7 {[%clk 0:00:47]} 42. Bf3 {[%clk 0:00:03]}  Rh2+ {[%clk 0:00:46]} 43. Kb3 {[%clk 0:00:03]}  Ne6 {[%clk 0:00:45]} 44. Re1+ {[%clk 0:00:02]}  Kd6 {[%clk 0:00:45]} 45. Rd1+ {[%clk 0:00:03]}  Kc5 {[%clk 0:00:45]} 46. Bg4 {[%clk 0:00:02]}  Nd4+ {[%clk 0:00:45]} 47. Ka3 {[%clk 0:00:03]}  Rg2 {[%clk 0:00:35]} 48. Bc8 {[%clk 0:00:03]}  b6 {[%clk 0:00:34]} 49. Rc1 {[%clk 0:00:03]}  Rf2 {[%clk 0:00:22]} 50. Rc3 {[%clk 0:00:03]}  Ne2 {[%clk 0:00:20]} 51. Rc2 {[%clk 0:00:03]}  Rf3+ {[%clk 0:00:20]} 52. Kb2 {[%clk 0:00:04]}  Nd4 {[%clk 0:00:21]} 53. Rc3 {[%clk 0:00:04]}  Rf2+ {[%clk 0:00:21]} 54. Ka3 {[%clk 0:00:05]}  Kd6 {[%clk 0:00:21]} 55. Bg4 {[%clk 0:00:04]}  b5 {[%clk 0:00:21]} 56. Bd1 {[%clk 0:00:02]}  c5 {[%clk 0:00:19]} 57. Bb3 {[%clk 0:00:02]}  b4+ {[%clk 0:00:20]} 0-1


[Site "https://www.chess.com"]

[Event "Titled Tuesday Blitz March 28 Late 2023"]
[White "Ozates, Tuna"]
[Black "Idani, Pouya"]
[WhiteFideId "6354521"]
[BlackFideId "12510130"]
[WhiteElo "2151"]
[BlackElo "2574"]
[Result "1-0"]
[Round "04"]
[TimeControl "180+2"]
[Date "2023.03.28"]
[WhiteClock "0:01:07"]
[BlackClock "0:00:03"]

1. e4 {[%clk 0:03:00]}  c5 {[%clk 0:02:59]} 2. Nf3 {[%clk 0:03:00]}  d6 {[%clk 0:02:59]} 3. Bb5+ {[%clk 0:02:59]}  Bd7 {[%clk 0:02:56]} 4. Bxd7+ {[%clk 0:02:59]}  Qxd7 {[%clk 0:02:57]} 5. O-O {[%clk 0:03:00]}  Nc6 {[%clk 0:02:57]} 6. Qe2 {[%clk 0:03:01]}  g6 {[%clk 0:02:56]} 7. Rd1 {[%clk 0:03:01]}  Bg7 {[%clk 0:02:56]} 8. c3 {[%clk 0:03:02]}  e5 {[%clk 0:02:57]} 9. Na3 {[%clk 0:03:00]}  Nge7 {[%clk 0:02:57]} 10. Nc2 {[%clk 0:03:00]}  f5 {[%clk 0:02:34]} 11. d4 {[%clk 0:02:56]}  fxe4 {[%clk 0:02:28]} 12. Ng5 {[%clk 0:02:56]}  cxd4 {[%clk 0:02:18]} 13. cxd4 {[%clk 0:02:53]}  d5 {[%clk 0:02:04]} 14. dxe5 {[%clk 0:02:49]}  Qf5 {[%clk 0:01:57]} 15. e6 {[%clk 0:02:05]}  O-O {[%clk 0:01:45]} 16. h4 {[%clk 0:01:56]}  h6 {[%clk 0:01:28]} 17. Nf7 {[%clk 0:01:56]}  Kh7 {[%clk 0:01:01]} 18. Nd6 {[%clk 0:01:54]}  Qxe6 {[%clk 0:00:55]} 19. Nxb7 {[%clk 0:01:54]}  Nf5 {[%clk 0:00:42]} 20. Nc5 {[%clk 0:01:52]}  Qf7 {[%clk 0:00:27]} 21. g3 {[%clk 0:01:36]}  Nfd4 {[%clk 0:00:24]} 22. Nxd4 {[%clk 0:01:34]}  Nxd4 {[%clk 0:00:23]} 23. Qf1 {[%clk 0:01:24]}  Rac8 {[%clk 0:00:21]} 24. Be3 {[%clk 0:01:22]}  Nf3+ {[%clk 0:00:17]} 25. Kh1 {[%clk 0:01:19]}  d4 {[%clk 0:00:16]} 26. Nxe4 {[%clk 0:01:19]}  dxe3 {[%clk 0:00:13]} 27. fxe3 {[%clk 0:01:20]}  Rc2 {[%clk 0:00:07]} 28. Qh3 {[%clk 0:01:07]}  Rh2+ {[%clk 0:00:03]} 29. Qxh2 {[%clk 0:01:07]} 1-0


[Site "https://www.chess.com"]

[Event "Titled Tuesday Blitz March 28 Late 2023"]
[White "Tazbir, Marcin"]
[Black "Grebeniuk, Semen"]
[WhiteFideId "1122452"]
[BlackFideId "14117509"]
[WhiteElo "2516"]
[BlackElo "2266"]
[Result "1-0"]
[Round "04"]
[TimeControl "180+2"]
[Date "2023.03.28"]
[WhiteClock "0:01:10"]
[BlackClock "0:00:05"]

1. d4 {[%clk 0:03:00]}  f5 {[%clk 0:02:59]} 2. Nc3 {[%clk 0:02:57]}  Nf6 {[%clk 0:02:57]} 3. Bg5 {[%clk 0:02:56]}  d5 {[%clk 0:02:58]} 4. Bxf6 {[%clk 0:02:55]}  exf6 {[%clk 0:02:59]} 5. e3 {[%clk 0:02:55]}  c6 {[%clk 0:02:59]} 6. Bd3 {[%clk 0:02:55]}  Be6 {[%clk 0:03:00]} 7. h4 {[%clk 0:02:55]}  h5 {[%clk 0:02:53]} 8. Nge2 {[%clk 0:02:53]}  g6 {[%clk 0:02:52]} 9. Nf4 {[%clk 0:02:53]}  Bf7 {[%clk 0:02:53]} 10. a3 {[%clk 0:02:52]}  Bd6 {[%clk 0:02:51]} 11. Nce2 {[%clk 0:02:52]}  Na6 {[%clk 0:02:41]} 12. Rc1 {[%clk 0:02:50]}  b5 {[%clk 0:02:38]} 13. a4 {[%clk 0:02:42]}  Nc7 {[%clk 0:02:03]} 14. axb5 {[%clk 0:02:40]}  cxb5 {[%clk 0:02:04]} 15. c3 {[%clk 0:02:33]}  O-O {[%clk 0:02:02]} 16. f3 {[%clk 0:02:29]}  Re8 {[%clk 0:02:00]} 17. Kf2 {[%clk 0:02:29]}  Qe7 {[%clk 0:02:00]} 18. Qd2 {[%clk 0:02:29]}  a6 {[%clk 0:01:51]} 19. Rcg1 {[%clk 0:02:28]}  Qd7 {[%clk 0:01:20]} 20. g4 {[%clk 0:02:27]}  fxg4 {[%clk 0:01:18]} 21. fxg4 {[%clk 0:02:27]}  hxg4 {[%clk 0:01:15]} 22. Nxg6 {[%clk 0:02:26]}  f5 {[%clk 0:01:00]} 23. Ngf4 {[%clk 0:02:23]}  b4 {[%clk 0:00:29]} 24. Ng3 {[%clk 0:02:22]}  Re4 {[%clk 0:00:26]} 25. Bxe4 {[%clk 0:02:18]}  dxe4 {[%clk 0:00:26]} 26. Nge2 {[%clk 0:02:16]}  bxc3 {[%clk 0:00:25]} 27. bxc3 {[%clk 0:02:16]}  Rc8 {[%clk 0:00:23]} 28. d5 {[%clk 0:02:00]}  Be5 {[%clk 0:00:22]} 29. c4 {[%clk 0:01:58]}  Ne8 {[%clk 0:00:19]} 30. Rc1 {[%clk 0:01:57]}  Kh7 {[%clk 0:00:16]} 31. c5 {[%clk 0:01:56]}  Nf6 {[%clk 0:00:14]} 32. d6 {[%clk 0:01:56]}  g3+ {[%clk 0:00:12]} 33. Nxg3 {[%clk 0:01:54]}  Ng4+ {[%clk 0:00:12]} 34. Kg2 {[%clk 0:01:51]}  Bxf4 {[%clk 0:00:13]} 35. exf4 {[%clk 0:01:51]}  e3 {[%clk 0:00:13]} 36. Qd3 {[%clk 0:01:46]}  Qc6+ {[%clk 0:00:11]} 37. Kg1 {[%clk 0:01:45]}  Qf3 {[%clk 0:00:10]} 38. Qxf5+ {[%clk 0:01:29]}  Bg6 {[%clk 0:00:10]} 39. Qd7+ {[%clk 0:01:22]}  Kh6 {[%clk 0:00:11]} 40. Rh2 {[%clk 0:01:18]}  Qxg3+ {[%clk 0:00:10]} 41. Rg2 {[%clk 0:01:18]}  Qxf4 {[%clk 0:00:06]} 42. Qxg4 {[%clk 0:01:12]}  Qxg4 {[%clk 0:00:05]} 43. Rxg4 {[%clk 0:01:12]}  e2 {[%clk 0:00:05]} 44. Kf2 {[%clk 0:01:12]}  Bh5 {[%clk 0:00:05]} 45. Rf4 {[%clk 0:01:10]} 1-0


[Site "https://www.chess.com"]